bitfinex-derivatives/quotes_ETHF0:USTF0_20250612
["timestamp","ask_amount","ask_price","bid_price","bid_amount"]
[1749740881008,0.00541028,2771.1,2770.5,3.2078]
[1749740881207,0.72171,2770.7,2770.6,0.00541028]
[1749740881599,0.72171,2770.7,2770.6,0.72714028]
[1749740882209,0.7217,2770.8,2770.6,0.72713028]
[1749740882506,0.6285,2770.9,2770.6,0.00541028]
[1749740882703,0.00541028,2771.1,2771.0,0.72163]
[1749740886110,3.8384,2771.9,2771.8,0.72142]
[1749740886310,4.55981,2771.9,2771.8,0.72142]
[1749740886707,0.72142,2771.8,2771.7,0.72143]
[1749740886915,3.8384,2771.9,2771.8,0.72142]
[1749740887103,4.55979,2771.9,2771.8,0.72142]
[1749740887416,3.8384,2771.9,2771.8,0.72142]
[1749740887716,3.2078,2771.9,2771.8,0.72142]
[1749740887915,0.72673738,2772.1,2772.0,0.72137]
[1749740888216,0.00537738,2772.1,2771.6,3.01929]
[1749740888516,0.00537738,2772.1,2772.0,0.72137]
[1749740889807,3.2078,2772.4,2772.3,0.72129]
[1749740890012,3.2078,2772.4,2771.9,3.2078]
[1749740890518,1.98982,2772.6,2772.5,0.72124]
[1749740890711,0.72126,2772.5,2772.4,0.72125]
[1749740890912,1.2686,2772.6,2772.3,0.00541028]
[1749740890913,1.98983,2772.6,2772.5,0.72124]
[1749740891113,0.72126,2772.5,2772.4,0.72125]
[1749740891416,0.72123,2772.6,2772.5,0.72122]
[1749740891612,0.72126,2772.5,2772.4,0.72125]
[1749740891810,1.80243,2773.6,2772.4,9.3638]
[1749740892015,0.6289,2773.7,2773.2,3.2078]
[1749740892216,0.72097,2773.6,2773.5,0.72096]
[1749740892517,0.72099,2773.5,2773.4,0.72098]
[1749740892714,0.72098,2773.5,2773.4,0.72098]
[1749740892914,1.9042,2773.7,2773.3,3.2078]
[1749740892915,0.721,2773.4,2773.3,3.2078]
[1749740893114,3.70656,2773.7,2772.8,0.72115]
[1749740893316,0.72116,2772.8,2772.7,3.2078]
[1749740894122,0.72126,2772.5,2772.4,0.72125]
[1749740894424,0.72126,2772.4,2772.3,3.21321028]
[1749740894827,0.72126,2772.4,2772.3,0.00541028]
[1749740895123,0.72126,2772.4,2772.3,0.72670028]
[1749740895519,0.72123,2772.6,2772.4,0.72126]
[1749740895823,6.155,2772.8,2772.3,3.93449028]
[1749740895824,7.95794,2772.8,2772.3,3.93449028]
[1749740896123,0.72126,2772.4,2772.3,3.21321028]
[1749740896322,0.72126,2772.4,2772.3,0.00541028]
[1749740896525,6.87626,2772.4,2772.3,0.00541028]
[1749740897320,0.72142,2771.8,2771.7,3.2078]
[1749740899026,0.72142,2771.8,2771.7,3.92925]
[1749740899426,0.72142,2771.8,2771.7,3.2078]
[1749740899825,0.72145,2771.7,2771.6,1.1679]
[1749740900021,0.72147,2771.6,2771.5,0.00541028]
[1749740901025,6.87547,2771.6,2771.5,0.00541028]
[1749740902423,10.08327,2771.6,2771.5,0.00541028]
[1749740902729,0.72167,2770.9,2770.8,0.72166]
[1749740902927,7.95897,2771.2,2770.8,1.1803]
[1749740903126,7.95897,2771.2,2770.7,4.4105]
[1749740903127,0.72168,2770.8,2770.7,4.4105]
[1749740903330,0.72168,2770.8,2770.7,0.5957]
[1749740903627,0.72168,2770.8,2770.7,1.31741]
[1749740903832,0.72168,2770.8,2770.7,0.5957]
[1749740904029,0.72173,2770.6,2770.5,0.72716028]
[1749740904232,0.72173,2770.6,2770.5,1.98346028]
[1749740904829,0.72173,2770.7,2770.6,0.72172]
[1749740905329,0.72169,2770.8,2770.7,0.72168]
[1749740905635,6.87669,2770.8,2770.7,0.72168]
[1749740905932,0.72169,2770.8,2770.7,0.72168]
[1749740906539,0.72173,2770.6,2770.5,1.98347028]
[1749740906832,1.80421,2770.8,2770.5,1.98347028]
[1749740906833,0.72171,2770.7,2770.5,1.26171028]
[1749740907034,0.72171,2770.7,2770.6,0.72171]
[1749740907829,0.72171,2770.7,2770.5,1.26171028]
[1749740907830,0.72173,2770.6,2770.5,1.98344028]
[1749740908531,1.15453,2770.6,2770.5,1.98344028]
[1749740908927,1.15453,2770.6,2770.5,1.26171028]
[1749740909230,1.15453,2770.6,2770.5,1.98347028]
[1749740911034,0.4328,2770.6,2770.5,1.98347028]
[1749740911336,1.15453,2770.6,2770.5,1.26171028]
[1749740911536,1.15453,2770.6,2770.5,0.00541028]
[1749740911738,1.15453,2770.6,2770.5,0.72717028]
[1749740911936,1.15453,2770.6,2770.5,1.90777028]
[1749740913738,1.15453,2770.6,2770.5,0.00541028]
[1749740914038,23.93353,2770.6,2770.5,0.00541028]
[1749740914230,23.93353,2770.6,2770.5,0.72717028]
[1749740915631,1.15453,2770.6,2770.5,0.72717028]
[1749740915938,6.156,2771.0,2770.5,0.72717028]
[1749740916140,0.72157,2771.3,2771.2,0.72155]
[1749740916336,6.7855,2771.6,2771.5,0.7215]
[1749740916537,6.156,2771.6,2771.5,0.7215]
[1749740916737,28.943,2771.6,2771.5,0.7215]
[1749740917238,6.87747,2771.6,2771.5,0.7215]
[1749740917435,0.72147,2771.6,2771.5,0.7215]
[1749740917741,23.50747,2771.7,2771.6,0.72147]
[1749740918139,23.50745,2771.7,2771.6,3.2078]
[1749740918338,23.50745,2771.7,2771.6,3.92927]
[1749740918537,6.87744,2771.8,2771.7,0.72142]
[1749740918739,0.72679028,2772.0,2771.9,0.72139]
[1749740919739,0.72678028,2772.0,2771.9,0.72139]
[1749740919938,0.00541028,2772.0,2771.9,0.72139]
[1749740920241,0.72678028,2772.0,2771.9,0.72139]
[1749740921136,0.00541028,2772.0,2771.9,0.72139]
[1749740921331,0.00541028,2772.0,2771.9,3.92919]
[1749740921836,22.768,2772.5,2771.9,10.01128]
[1749740922040,23.48926,2772.5,2772.4,0.72126]
[1749740922642,6.84823,2772.6,2772.5,0.72124]
[1749740922943,29.61864028,2772.6,2772.5,0.72124]
[1749740923645,6.85364028,2772.6,2772.5,0.72124]
[1749740923844,6.85364028,2772.6,2772.4,0.72125]
[1749740923845,0.72127,2772.5,2772.4,0.72125]
[1749740924040,0.00541028,2772.6,2772.5,0.72124]
[1749740924242,0.00541028,2772.6,2772.5,3.92904]
[1749740926145,0.00541028,2772.6,2772.5,5.76564]
[1749740926542,0.00541028,2772.6,2772.5,5.0444]
[1749740926749,1.80314,2772.5,2772.2,3.2078]
[1749740926945,0.72134,2772.1,2772.0,0.00541028]
[1749740929452,0.72145,2771.8,2771.7,0.72144]
[1749740929751,0.72145,2771.7,2771.6,3.92926]
[1749740929950,0.72144,2771.8,2771.7,0.72143]
[1749740930352,0.7214,2771.9,2771.8,0.7214]
[1749740930548,22.743,2772.2,2771.7,1.2362]
[1749740930747,0.72139,2772.0,2771.9,0.72138]
[1749740930941,0.72141,2771.9,2771.8,0.7214]
[1749740931143,24.54634,2772.2,2771.7,1.2362]
[1749740931346,0.72142,2771.9,2771.8,0.72141]
[1749740931646,0.72142,2771.8,2771.7,1.95763]
[1749740931847,0.72145,2771.7,2771.6,3.92926]
[1749740932450,1.1686,2772.1,2771.6,3.2078]
[1749740932755,0.72139,2772.0,2771.9,0.72138]
[1749740933455,29.55436,2772.1,2772.0,0.72135]
[1749740933751,0.7214,2772.0,2771.9,0.72138]
[1749740934356,0.72142,2771.9,2771.8,0.7214]
[1749740935354,0.72147,2771.6,2771.5,0.72689028]
[1749740935559,0.72147,2771.6,2771.5,0.00541028]
[1749740935852,0.72147,2771.6,2771.5,0.72691028]
[1749740936352,0.72146,2771.7,2771.6,0.72144]
[1749740936557,0.72144,2771.8,2771.7,0.72142]
[1749740937354,0.72144,2771.8,2771.7,0.71902]
[1749740937555,0.72147,2771.7,2771.6,0.72146]
[1749740938859,0.72147,2771.6,2771.5,0.72688028]
[1749740939453,0.72146,2771.7,2771.6,0.72146]
[1749740939761,1.8704,2772.0,2771.5,0.00541028]
[1749740939954,2.5918,2772.0,2771.9,0.72139]
[1749740940156,0.72141,2771.9,2771.8,0.7214]
[1749740940447,0.72142,2771.9,2771.8,0.7214]
[1749740941362,2.59179,2772.0,2771.9,0.72139]
[1749740941561,0.6223,2772.0,2771.9,0.72139]
[1749740941760,6.126,2772.3,2772.2,0.72132]
[1749740942256,6.13141028,2772.6,2772.5,0.72124]
[1749740942659,0.72127,2772.5,2772.4,0.72125]
[1749740942863,6.85264028,2772.6,2772.5,0.72124]
[1749740943053,6.13141028,2772.6,2772.1,3.2078]
[1749740943259,6.13141028,2772.6,2772.1,5.01115]
[1749740943459,0.72126,2772.5,2772.4,0.72124]
[1749740943758,0.00541028,2772.6,2772.5,0.72124]
[1749740944463,0.72124,2772.5,2772.4,3.2078]
[1749740944664,0.72124,2772.5,2772.4,0.72126]
[1749740944959,1.80317,2772.4,2771.8,3.2078]
[1749740945160,6.7452,2772.3,2772.2,0.72132]
[1749740945367,6.126,2772.3,2772.2,0.72132]
[1749740945661,22.72341028,2772.6,2772.1,3.2078]
[1749740945662,28.85,2772.5,2772.1,3.2078]
[1749740945865,0.72127,2772.4,2772.3,0.72127]
[1749740946063,29.57126,2772.5,2772.4,0.72126]
[1749740946465,28.85,2772.5,2772.4,0.72126]
[1749740946662,28.85,2772.5,2772.3,0.72128]
[1749740946864,0.72132,2772.2,2772.1,3.2078]
[1749740947076,0.72132,2772.2,2772.1,0.72132]
[1749740947765,0.72132,2772.2,2771.9,1.2374]
[1749740947766,1.9121,2772.4,2771.8,3.2078]
[1749740948063,0.72139,2772.0,2771.9,0.72138]
[1749740948471,22.707,2772.0,2771.6,1.8136]
[1749740948770,0.72141,2771.9,2771.8,0.7214]
[1749740949365,29.54936,2772.1,2772.0,0.72135]
[1749740949863,29.54936,2772.1,2771.9,0.72138]
[1749740949864,0.7214,2772.0,2771.9,0.72138]
[1749740950063,0.72141,2771.9,2771.8,0.7214]
[1749740950663,1.80343,2772.0,2771.5,3.80081028]
[1749740950867,0.72147,2771.6,2771.5,3.21321028]
[1749740951165,0.72147,2771.6,2771.5,0.72691028]
[1749740951966,23.41047,2771.6,2771.5,0.72691028]
[1749740952867,23.41047,2771.6,2771.5,0.00541028]
[1749740953267,23.41047,2771.6,2771.5,0.72691028]
[1749740953670,23.41047,2771.6,2771.5,0.00541028]
[1749740953873,23.41047,2771.6,2771.5,0.72691028]
[1749740954770,23.41047,2771.6,2771.5,0.00541028]
[1749740955174,28.52157,2771.6,2771.5,0.00541028]
[1749740956378,0.7216,2771.1,2771.0,1.05983465]
[1749740956575,23.3766,2771.1,2771.0,1.05983465]
[1749740956875,23.3766,2771.1,2771.0,0.33820465]
[1749740957267,0.72165,2770.9,2770.8,0.00541028]
[1749740957571,6.80565,2770.9,2770.8,0.00541028]
[1749740957880,0.72181,2770.3,2770.2,3.2078]
[1749740958080,0.72192,2769.9,2769.8,3.2078]
[1749740958371,23.39592,2769.9,2769.8,3.2078]
[1749740958572,0.72199,2769.6,2769.5,5.0255]
[1749740958780,23.47499,2769.6,2769.5,4.432]
[1749740959079,23.47499,2769.6,2769.5,3.2078]
[1749740959269,29.55899,2769.6,2769.5,3.2078]
[1749740959467,0.72202,2769.5,2769.3,0.72747028]
[1749740959680,0.72205,2769.4,2769.3,0.00541028]
[1749740960074,0.72205,2769.4,2769.3,0.72748028]
[1749740960375,0.72205,2769.4,2769.3,0.00541028]
[1749740960572,0.72205,2769.4,2769.3,1.95168028]
[1749740960773,0.72205,2769.4,2769.3,1.22961028]
[1749740960973,28.837,2769.6,2769.3,1.22961028]
[1749740961375,0.72204,2769.4,2769.3,1.22961028]
[1749740962179,23.46804,2769.4,2769.3,0.00541028]
[1749740963476,23.46804,2769.4,2769.3,0.72748028]
[1749740963679,23.46804,2769.4,2769.3,0.00541028]
[1749740965183,0.72203,2769.5,2769.3,0.00541028]
[1749740965377,0.00541028,2769.7,2769.3,1.22601028]
[1749740965684,22.74341028,2769.7,2769.6,0.72199]
[1749740965984,0.00541028,2769.7,2769.6,2.56729]
[1749740966172,6.087,2770.4,2769.9,0.72191]
[1749740966371,3.2078,2770.5,2770.4,0.72178]
[1749740966582,25.9648,2770.5,2770.4,0.72178]
[1749740966781,3.2078,2770.5,2770.4,0.72178]
[1749740966983,3.2078,2770.5,2770.3,0.72179]
[1749740967172,3.2078,2770.5,2770.3,1.7928]
[1749740967373,3.92958,2770.5,2770.4,0.72178]
[1749740967576,3.2078,2770.5,2770.4,1.91578]
[1749740967889,25.9678,2770.5,2770.4,1.91578]
[1749740968081,0.72175,2770.5,2770.4,1.91578]
[1749740968278,23.47075,2770.6,2770.5,0.72175]
[1749740968480,6.09241028,2770.7,2770.6,0.72173]
[1749740968981,29.55711028,2770.7,2770.6,0.72173]
[1749740969181,6.09241028,2770.7,2770.6,0.72173]
[1749740969377,28.83441028,2770.7,2770.6,0.72173]
[1749740969584,0.72711028,2770.7,2770.6,0.72173]
[1749740969783,23.46711028,2770.7,2770.6,0.72173]
[1749740969978,0.00541028,2770.7,2770.6,0.72173]
[1749740970181,0.00541028,2770.7,2770.6,3.92953]
[1749740970892,0.72711028,2770.7,2770.6,3.92953]
[1749740971186,0.72173,2770.6,2770.5,1.91574]
[1749740971585,0.72713028,2770.7,2770.6,0.72173]
[1749740972175,0.72173,2770.6,2770.5,1.194]
[1749740972690,0.72178,2770.4,2770.3,4.52838]
[1749740973385,0.72177,2770.5,2770.4,0.72176]
[1749740974287,23.44775,2770.6,2770.5,0.72176]
[1749740974888,0.72178,2770.5,2770.4,0.72176]
[1749740975691,0.72178,2770.4,2770.3,5.0462]
[1749740977096,28.812,2770.6,2770.3,5.0462]
[1749740977097,6.086,2770.6,2770.3,5.0462]
[1749740977293,6.80773,2770.6,2770.5,0.72175]
[1749740977490,29.49673,2770.6,2770.5,0.72175]
[1749740977995,0.72178,2770.5,2770.4,0.72176]
[1749740978198,0.72178,2770.5,2770.4,1.91216]
[1749740978690,0.72178,2770.5,2770.4,1.1904]
[1749740978895,0.72178,2770.4,2770.3,4.52841]
[1749740979193,0.72178,2770.4,2770.3,4.52838]
[1749740979696,0.72178,2770.4,2770.3,5.76108]
[1749740980496,0.00541028,2770.7,2770.6,0.72173]
[1749740980694,0.00541028,2770.7,2770.6,3.92953]
[1749740980996,0.72711028,2770.7,2770.6,3.92953]
[1749740981387,0.72711028,2770.7,2770.6,3.2078]
[1749740981588,0.72173,2770.6,2770.5,1.2327]
[1749740983000,0.72713028,2770.7,2770.6,0.72173]
[1749740983188,23.41813028,2770.7,2770.6,0.72173]
[1749740984498,0.72173,2770.6,2770.5,1.95444]
[1749740984695,0.72173,2770.6,2770.5,1.2327]
[1749740985001,0.72178,2770.4,2770.3,0.5988]
[1749740985389,0.72175,2770.6,2770.5,0.72173]
[1749740985891,0.00541028,2770.7,2770.6,0.72173]
[1749740986204,3.2078,2771.3,2771.1,0.72158]
[1749740986205,0.7216,2771.2,2771.1,0.72158]
[1749740986393,0.72165,2771.0,2770.9,0.72162]
[1749740986693,0.72165,2771.0,2770.9,1.96292]
[1749740987396,0.72162,2771.0,2770.9,1.96293]
[1749740987800,0.72165,2770.9,2770.8,3.8157]
[1749740988202,0.72168,2770.8,2770.7,0.00541028]
[1749740989407,0.72187,2770.1,2770.0,0.72189]
[1749740989598,23.41287,2770.1,2770.0,0.72189]
[1749740989998,0.72183,2770.3,2770.2,0.72183]
[1749740990198,29.47383,2770.3,2770.2,0.72183]
[1749740990399,28.752,2770.3,2770.2,0.72183]
[1749740990702,29.47381,2770.3,2770.2,0.72183]
[1749740991805,0.72181,2770.3,2770.2,0.72183]
[1749740992004,29.45881,2770.3,2770.2,0.72183]
[1749740992199,1.80435,2770.6,2770.2,1.80459]
[1749740992200,22.67,2770.5,2770.2,1.80459]
[1749740992401,28.737,2770.6,2770.3,1.7855]
[1749740992706,0.72178,2770.4,2770.3,1.312]
[1749740992906,0.72183,2770.2,2770.1,3.92965]
[1749740993300,0.72183,2770.3,2770.2,0.72182]
[1749740993606,0.72183,2770.3,2770.0,0.00541028]
[1749740993607,0.72186,2770.1,2770.0,0.72730028]
[1749740994295,0.72178,2770.4,2770.3,0.72179]
[1749740994497,29.49078,2770.4,2770.3,0.72179]
[1749740994902,0.72186,2770.2,2770.1,0.72185]
[1749740995400,29.49086,2770.2,2770.1,0.72185]
[1749740996304,0.72186,2770.1,2770.0,0.72727028]
[1749740997307,29.49084,2770.2,2770.1,0.72186]
[1749740998003,0.72186,2770.1,2770.0,0.72729028]
[1749740998796,0.72186,2770.1,2770.0,0.00541028]
[1749740999405,0.72185,2770.2,2770.1,0.72186]
[1749740999607,0.7218,2770.4,2770.3,0.72178]
[1749740999807,29.4538,2770.4,2770.3,0.72178]
[1749741000604,28.732,2770.4,2770.3,0.72178]
[1749741000807,6.78977,2770.5,2770.1,6.89444]
[1749741001009,6.78977,2770.5,2770.4,0.72178]
[1749741001304,29.44977,2770.5,2770.4,0.72178]
[1749741001505,6.78977,2770.5,2770.4,0.72178]
[1749741001704,29.45077,2770.5,2770.4,0.72178]
[1749741003003,0.72181,2770.3,2770.2,1.2004]
[1749741003406,0.72183,2770.2,2770.1,3.8424]
[1749741003605,0.72186,2770.1,2770.0,0.00541028]
[1749741003822,6.78986,2770.1,2770.0,0.00541028]
[1749741004108,9.21756,2770.1,2770.0,0.00541028]
[1749741004704,3.2078,2770.3,2770.0,0.00541028]
[1749741004898,28.725,2770.2,2770.1,0.72183]
[1749741005102,0.72186,2770.1,2770.0,0.72728028]
[1749741006005,0.72186,2770.1,2770.0,0.00541028]
[1749741006207,0.72199,2769.6,2769.5,3.54612438]
[1749741006408,23.39799,2769.6,2769.5,3.54612438]
[1749741006798,23.39799,2769.6,2769.5,0.33832438]
[1749741008908,29.45599,2769.6,2769.5,1.06034438]
[1749741010003,28.734,2769.6,2769.5,1.06034438]
[1749741010202,3.92978,2769.7,2769.6,0.72199]
[1749741010405,28.73,2769.7,2769.6,1.95919]
[1749741010715,6.06341028,2769.8,2769.7,0.72196]
[1749741011004,28.72541028,2769.8,2769.7,0.72196]
[1749741011413,0.72196,2769.7,2769.6,1.95918]
[1749741012313,29.44737028,2769.8,2769.7,0.72196]
[1749741012814,0.72196,2769.7,2769.6,1.95917]
[1749741013015,0.72196,2769.7,2769.6,1.2372]
[1749741013314,0.72199,2769.6,2769.5,4.15332438]
[1749741013510,0.72199,2769.6,2769.5,4.87534438]
[1749741013809,0.72199,2769.6,2769.5,0.33832438]
[1749741014405,0.72198,2769.7,2769.5,0.33832438]
[1749741014709,6.77998,2769.7,2769.6,0.72196]
[1749741015012,6.78535028,2769.8,2769.7,0.72196]
[1749741015214,0.72196,2769.7,2769.6,5.17217]
[1749741016007,0.72737028,2769.8,2769.7,0.72196]
[1749741016310,0.72196,2769.7,2769.6,5.17218]
[1749741017013,29.41035028,2769.8,2769.7,0.72196]
[1749741019109,0.72196,2769.7,2769.6,4.4502]
[1749741019311,29.41037028,2769.8,2769.7,0.72196]
[1749741019615,28.66241028,2769.8,2769.7,0.72196]
[1749741019814,28.66241028,2769.8,2769.6,5.17217]
[1749741020014,0.72196,2769.7,2769.6,5.17217]
[1749741020415,29.38436028,2769.8,2769.7,0.72196]
[1749741020818,6.06341028,2769.8,2769.7,1.35966]
[1749741021011,28.65141028,2769.8,2769.7,1.35966]
[1749741023514,0.72196,2769.7,2769.5,0.33832438]
[1749741023710,28.65141028,2769.8,2769.5,0.33832438]
[1749741023711,23.28999,2769.6,2769.5,0.33832438]
[1749741023912,11.07609028,2769.8,2769.5,0.33832438]
[1749741023913,22.568,2769.7,2769.5,3.54612438]
[1749741024215,22.568,2769.7,2769.6,0.72199]
[1749741024216,23.28997,2769.7,2769.6,0.72199]
[1749741024418,23.28997,2769.7,2769.6,2.56959]
[1749741024419,22.568,2769.7,2769.6,2.56959]
[1749741024718,23.28996,2769.7,2769.6,2.56959]
[1749741025420,22.568,2769.7,2769.6,2.56959]
[1749741026519,23.28996,2769.7,2769.6,2.56959]
[1749741026710,23.28996,2769.7,2769.5,3.54612438]
[1749741026711,0.72199,2769.6,2769.5,3.54612438]
[1749741026911,0.72199,2769.6,2769.5,0.33832438]
[1749741027513,0.72199,2769.6,2768.6,3.2078]
[1749741027514,7.79978325,2769.6,2768.6,3.2078]
[1749741027717,0.72222,2768.7,2768.6,3.2078]
[1749741027916,0.72222,2768.7,2768.5,0.33848959]
[1749741027917,0.72225,2768.6,2768.5,0.33848959]
[1749741028314,0.72241,2768.0,2767.9,3.2078]
[1749741028515,22.589,2768.0,2767.9,3.93023]
[1749741028714,23.74491,2768.0,2767.9,3.2078]
[1749741030422,23.0225,2768.0,2767.9,3.93023]
[1749741031622,0.4335,2768.0,2767.9,3.93023]
[1749741032015,0.4335,2768.0,2767.9,8.93023]
[1749741032223,6.06,2768.8,2768.7,0.72222]
[1749741033620,0.00541028,2769.0,2768.9,0.72217]
[1749741033917,0.00541028,2769.0,2768.9,3.92997]
[1749741034113,21.84,2769.9,2768.9,3.92997]
[1749741034114,6.06,2769.8,2769.1,1.80531]
[1749741034315,0.72204,2769.4,2769.3,3.92986]
[1749741034924,0.72203,2769.5,2769.4,0.72203]
[1749741035221,0.72203,2769.5,2769.4,0.72204]
[1749741035520,22.61241028,2769.7,2769.3,3.2078]
[1749741035521,0.72204,2769.4,2769.3,3.2078]
[1749741035724,28.667,2769.4,2769.3,3.92987]
[1749741036617,29.38904,2769.4,2769.3,3.2078]
[1749741036819,28.667,2769.4,2769.3,3.92987]
[1749741037715,28.667,2769.4,2769.3,5.19657]
[1749741037916,29.38904,2769.4,2769.3,5.19657]
[1749741038223,28.667,2769.4,2769.3,5.19657]
[1749741038524,29.38904,2769.4,2769.3,5.19657]
[1749741038721,29.38904,2769.4,2769.3,3.92987]
[1749741039022,28.667,2769.4,2769.3,3.92987]
[1749741039222,28.655,2769.4,2769.3,5.19657]
[1749741039723,28.655,2769.4,2769.3,3.92987]
[1749741039924,29.37704,2769.4,2769.3,3.92987]
[1749741040517,29.37704,2769.4,2769.3,3.2078]
[1749741041015,0.72207,2769.3,2769.2,0.00541028]
[1749741041222,0.72207,2769.3,2769.2,0.72750028]
[1749741041523,0.72207,2769.3,2769.2,0.00541028]
[1749741041719,0.72207,2769.3,2769.2,0.72750028]
[1749741042022,0.72207,2769.3,2769.2,0.00541028]
[1749741047222,0.72221,2768.9,2768.8,0.7222]
[1749741047424,29.27921,2768.9,2768.8,0.7222]
[1749741047927,0.72222,2768.7,2768.6,4.55063]
[1749741048123,23.26722,2768.7,2768.6,3.2078]
[1749741049328,0.72225,2768.6,2768.5,0.6104]
[1749741049630,22.545,2768.7,2768.6,0.72225]
[1749741050126,0.72218,2768.9,2768.8,0.7222]
[1749741050325,6.73618,2768.9,2768.8,3.93]
[1749741050525,29.27318,2768.9,2768.8,3.93]
[1749741050725,28.551,2768.9,2768.8,3.93]
[1749741050927,28.551,2768.9,2768.5,3.2078]
[1749741051129,0.72225,2768.6,2768.5,3.93006]
[1749741051325,23.25525,2768.6,2768.5,5.15586]
[1749741051525,22.533,2768.6,2768.5,5.15586]
[1749741052629,0.72225,2768.6,2768.5,5.15586]
[1749741052827,0.72225,2768.6,2768.5,4.4336]
[1749741053824,0.72225,2768.6,2768.5,5.15588]
[1749741054024,23.25323,2768.7,2768.6,0.72225]
[1749741054423,0.72225,2768.6,2768.5,5.15586]
[1749741055229,22.531,2768.7,2768.6,0.72225]
[1749741055526,0.72212,2769.2,2768.8,1.8055]
[1749741055721,0.72212,2769.2,2769.1,0.72212]
[1749741055925,23.23212,2769.2,2769.1,0.72212]
[1749741056139,6.73609,2769.3,2769.2,0.72209]
[1749741056432,29.25009,2769.3,2769.2,0.72209]
[1749741057139,6.73602,2769.6,2769.1,5.01309]
[1749741057331,6.73602,2769.6,2769.5,0.72199]
[1749741057634,29.24201,2769.6,2769.5,0.72202]
[1749741057835,29.24201,2769.6,2769.5,1.96362]
[1749741058336,29.24201,2769.6,2769.5,1.2416]
[1749741058634,29.24201,2769.6,2769.5,1.96362]
[1749741059729,6.014,2769.6,2769.5,1.96362]
[1749741060031,0.00541028,2769.7,2769.6,0.72199]
[1749741062528,6.013,2770.4,2769.6,11.013]
[1749741062734,0.72179,2770.5,2770.4,0.72176]
[1749741062929,31.0598,2770.7,2770.6,0.72173]
[1749741062930,29.24573,2770.7,2770.6,0.72173]
[1749741063139,0.72177,2770.6,2770.5,0.72174]
[1749741063540,0.00541028,2770.8,2770.3,1.91121028]
[1749741063835,0.00541028,2770.8,2770.7,0.7217]
[1749741064531,0.7217,2770.7,2770.6,2.63942]
[1749741064729,0.00541028,2770.8,2770.7,0.7217]
[1749741064931,0.72709028,2770.8,2770.7,0.7217]
[1749741065334,0.00541028,2770.8,2770.7,0.7217]
[1749741065539,0.72178,2770.4,2770.3,1.35210028]
[1749741065745,0.72178,2770.4,2770.3,0.63031028]
[1749741066038,0.72177,2770.5,2770.4,0.72176]
[1749741066439,0.72178,2770.4,2770.3,1.35210028]
[1749741066649,0.00541028,2770.8,2770.7,0.7217]
[1749741067341,6.012,2771.4,2771.3,0.72155]
[1749741067535,0.72155,2771.3,2771.2,0.72155]
[1749741067743,0.72148,2771.6,2771.1,0.589]
[1749741067942,6.012,2771.7,2771.5,0.72147]
[1749741068135,6.73346,2771.7,2771.6,0.72147]
[1749741068643,6.012,2771.7,2771.6,0.72147]
[1749741068841,6.73344,2771.7,2771.6,0.72147]
[1749741069244,0.72144,2771.7,2771.6,0.72147]
[1749741069640,0.72149,2771.6,2771.5,0.72149]
[1749741069840,0.7215,2771.5,2771.4,0.7215]
[1749741070032,0.72155,2771.3,2771.2,1.97336]
[1749741070341,0.72155,2771.3,2771.2,1.2518]
[1749741070536,0.72155,2771.3,2771.2,0.72157]
[1749741070739,0.72153,2771.4,2771.3,0.72154]
[1749741070936,1.2281,2771.7,2771.4,0.72152]
[1749741070937,0.72151,2771.5,2771.4,0.72152]
[1749741071136,1.2281,2771.7,2771.1,1.8541]
[1749741071137,1.2281,2771.7,2771.1,3.65806]
[1749741071338,28.517,2771.6,2771.5,0.72147]
[1749741071539,0.72149,2771.5,2771.4,0.72151]
[1749741071742,29.23848,2771.6,2771.5,0.72149]
[1749741072034,0.00541028,2771.9,2771.2,1.2651]
[1749741072035,0.72143,2771.8,2771.7,0.72143]
[1749741072233,0.72145,2771.7,2771.6,0.72146]
[1749741072439,0.72145,2771.7,2771.4,1.2651]
[1749741072440,28.52741028,2771.9,2771.4,1.2651]
[1749741072643,0.72149,2771.6,2771.5,0.72149]
[1749741072846,0.72153,2771.4,2771.3,0.72153]
[1749741073046,0.00541028,2771.9,2771.8,0.72142]
[1749741074143,0.00541028,2771.9,2771.8,1.94152]
[1749741074841,0.00541028,2771.9,2771.8,2.55072]
[1749741080442,0.72680028,2771.9,2771.8,2.55072]
[1749741080644,0.00541028,2771.9,2771.8,2.55072]
[1749741081045,0.00541028,2771.9,2771.3,1.80383]
[1749741081248,0.72149,2771.6,2771.5,0.72147]
[1749741081546,7.78856,2771.8,2771.0,1.80406]
[1749741081848,0.72148,2771.6,2771.5,0.72147]
[1749741082043,0.00541028,2771.9,2771.6,0.72147]
[1749741082246,28.46541028,2771.9,2771.8,0.72142]
[1749741082549,0.00541028,2771.9,2771.8,0.72142]
[1749741085249,1.34263,2772.6,2772.1,1.8033]
[1749741085548,0.72123,2772.6,2772.5,0.72123]
[1749741086342,0.72126,2772.4,2772.3,0.72665028]
[1749741086543,0.72125,2772.6,2772.5,0.72121]
[1749741086838,0.72126,2772.5,2772.4,0.72124]
[1749741087045,0.72123,2772.6,2772.5,0.72121]
[1749741087546,0.72126,2772.5,2772.4,0.72125]
[1749741087746,0.72123,2772.6,2772.5,0.72121]
[1749741089449,7.3376,2772.7,2772.6,0.72121]
[1749741089656,5.984,2772.7,2772.6,0.72121]
[1749741089952,0.00541028,2772.8,2772.7,0.72118]
[1749741092356,0.72121,2772.7,2772.6,0.72118]
[1749741092749,0.00541028,2772.8,2772.3,0.59671028]
[1749741092950,0.72123,2772.6,2772.5,0.7212]
[1749741093156,0.72126,2772.5,2772.4,0.72124]
[1749741093659,0.72126,2772.4,2772.3,0.00541028]
[1749741093858,6.70426,2772.4,2772.3,0.00541028]